{"text_format":"1","workbook":"xlsx","n_sheets":17,"sheets":["1","2","3","4","n.","5","6","n","n..","7","8","9","10","11","15n","16n","progn.dłu"],"not_rendered":{"charts":0,"images":0,"macros":0,"external_links":0,"defined_names":0,"comments":0,"pivot_tables":0},"unopened":[],"bounds":{"document_bytes":16777216,"sheet_cells":100000,"rows_first":2000,"rows_last":500,"rows_between":2000,"halvings":0,"cell_chars":16384,"cell_head_chars":4096},"cells_cut":0,"cells_raw":0,"read":"whole","date_system":"1900"}

{"sheet":"1","index":0,"n_rows":111,"n_cols":5,"rows_kept":111,"cut":false,"hidden":false,"merged":[[110,0,110,3],[0,0,0,4],[4,1,4,3],[97,0,97,4],[98,0,98,4],[96,0,96,3],[109,0,109,3]]}
["Dochody budżetu gminy na 2016 r.           "]
[null,null,null,null,"w złotych"]
["Dział","Rozdział","§","Nazwa","Plan ogółem"]
[1,2,3,4,5]
[null,"bieżące"]
["020",null,null,"Leśnictwo",{"$f":"SUM(E7)","v":1000}]
[null,"02001",null,"Gospodarka leśna",{"$f":"SUM(E8)","v":1000}]
[null,null,"0490","Wpływy i innych lokalnych opłat pobieranych przez jst na podstawie odrębnych ustaw",1000]
["600",null,null,"TRANSPORT I ŁĄCZNOŚĆ",{"$f":"SUM(E10)","v":10000}]
[null,"60016",null,"Drogi publiczne gminne",{"$f":"SUM(E11)","v":10000}]
[null,null,"0690","Wpływy z różnych opłat",10000]
["700",null,null,"Gospodarka mieszkaniowa",{"$f":"SUM(E13)","v":39000}]
[null,70005,null,"Gospodarka gruntami i nieruchomościami",{"$f":"SUM(E14:E16)","v":39000}]
[null,null,"0470","Wpływy z opłat za zarząd, użytkowanie i służebności",1800]
[null,null,"0550","Wpływy z opłat z tytułu użytkowania wieczystego nieruchomości",3200]
[null,null,"0750","Dochody z najmu i dzierżawy składników majątkowych Skarbu Państwa, jst lub innych jednostek zaliczanych do sektora finansów publicznych oraz innych umów o podobnym charakterze",34000]
[750,null,null,"Administracja Publiczna",{"$f":"SUM(E18+E21)","v":50988}]
[null,75011,null,"Urzędy Wojewódzkie",{"$f":"SUM(E19:E20)","v":47301}]
[null,null,"2010","Dotacje celowe otrzymane z budżetu państwa na realizację zadań bieżących z zakresu administracji rządowej oraz innych zadań zleconych gminie ustawami",47151]
[null,null,"2360","Dochody jst związane z realizacją zadań z zakresu administracji rządowej oraz innych zadań zleconych ustawami",150]
[null,75023,null,"Urzędy Gmin",{"$f":"SUM(E22:E22)","v":3687}]
[null,null,"0920","Wpływy z pozostałych odsetek",3687]
[751,null,null,"Urzędy naczelnych organów władzy państwowej, kontroli i ochrony prawa oraz sądownictwa",{"$f":"SUM(E24)","v":1079}]
[null,75101,null,"Urzędy naczelnych organów władzy państwowej, kontroli i ochrony prawa",{"$f":"SUM(E25)","v":1079}]
[null,null,2010,"Dotacje celowe otrzymane z budżetu państwa na realizację zadań bieżących z zakresu administracji rządowej oraz innych zadań zleconych gminie ustawami",1079]
[756,null,null,"Dochody od osób prawnych, od osób fizycznych i od innych jednostek nieposiadających osobowości prawnej oraz wydatki związane z ich poborem",{"$f":"SUM(E27+E29+E35+E45+E52)","v":4691840}]
[null,75601,null,"Wpływy z podatku dochodowego od osób fizycznych",{"$f":"SUM(E28)","v":2000}]
[null,null,"0350","Wpływy z podatku od działalności gospodarczej osób fizycznych, opłacanego w formie karty podatkowej",2000]
[null,75615,null,"Wpływy z podatku rolnego, podatku leśnego,podatku od czynności cywilnoprawnych, podatków i opłat lokalnych od osób prawnych i innych jednostek organizacyjnych",{"$f":"SUM(E30:E34)","v":1174500}]
[null,null,"0310","Wpływy z podatku od nieruchomości",1100000]
[null,null,"0320","Wpływy z podatku rolnego",500]
[null,null,"0330","Wpływy z podatku leśnego",69000]
[null,null,"0340","Wpływy z podatek od środków transportowych",4000]
[null,null,"0910","Wpływy z odsetek od nieterminowych wpłat z tytułu podatków i opłat",1000]
[null,75616,null,"Wpływy z podatku rolnego, podatku leśnego,podatku od spadków i darowizn,podatku od czynności cywilnoprawnych oraz podatków i opłat lokalnych od osób fizycznych",{"$f":"SUM(E36:E44)","v":510280}]
[null,null,"0310","Wpływy z podatku od nieruchomości",260000]
[null,null,"0320","Wpływy z podatku rolnego",119000]
[null,null,"0330","Wpływy z podatku leśnego",10000]
[null,null,"0340","Wpływy z podatek od środków transportowych",60000]
[null,null,"0360","Wpływy z podatku od spadków i darowizn",15000]
[null,null,"0430","Wpływy z opłaty targowej",480]
[null,null,"0500","Wpływy z podatku od czynności cywilnoprawnych",40800]
[null,null,"0690","Wpływy z różnych opłat",1000]
[null,null,"0910","Wpływy z odsetek od nieterminowych wpłat z tytułu podatków i opłat",4000]
[null,75618,null,"Wpływy z innych opłat stanowiących dochody jednostek samorządu terytorialnego na podstawie ustaw",{"$f":"SUM(E46:E51)","v":524500}]
[null,null,"0400","Wpływy z opłaty produktowej",500]
[null,null,"0410","Wpływy z opłaty skarbowej",10000]
[null,null,"0460","Wpływy z opłaty eksploatacyjnej",450000]
[null,null,"0480","Wpływy z opłat za  zezwolenia na sprzedaż napojów alkoholowych",53000]
[null,null,"0490","Wpływy i innych lokalnych opłat pobieranych przez jst na podstawie odrębnych ustaw",10000]
[null,null,"0910","Wpływy z odsetek od nieterminowych wpłat z tytułu podatków i opłat",1000]
[null,75621,null,"Udziały gmin w podatkach stanowiących dochód budżetu państwa",{"$f":"SUM(E53:E54)","v":2480560}]
[null,null,"0010","Wpływy z podatku dochodowego od osób fizycznych",2475560]
[null,null,"0020","Wpływy z podatku dochodowego od osób prawnych",5000]
[758,null,null,"Różne rozliczenia",{"$f":"SUM(E56+E58+E60)","v":6653827}]
[null,75801,null,"Część oświatowa subwencji ogólnej dla jednostek samorządu terytorialnego",{"$f":"SUM(E57)","v":4524081}]
[null,null,"2920","Subwencje ogólne z budżetu państwa",4524081]
[null,75807,null,"Część wyrównawcza subwencji ogólnej dla gmin",{"$f":"SUM(E59)","v":2022677}]
[null,null,"2920","Subwencje ogólne z budżetu państwa",2022677]
[null,75831,null,"Część równoważąca subwencji ogólnej dla gmin",{"$f":"SUM(E61)","v":107069}]
[null,null,"2920","Subwencje ogólne z budżetu państwa",107069]
[801,null,null,"Oświata i wychowanie",{"$f":"SUM(E63+E68+E70+E72)","v":31620}]
[null,80101,null,"Szkoły podstawowe",{"$f":"SUM(E64:E67)","v":17600}]
[null,null,"0690","Wpływy z różnych opłat",100]
[null,null,"0750","Dochody z najmu i dzierżawy składników majątkowych Skarbu Państwa, jst lub innych jednostek zaliczanych do sektora finansów publicznych oraz innych umów o podobnym charakterze",17000]
[null,null,"0920","Wpływy z pozostałych odsetek",490]
[null,null,"2400","Wpływy do budżetu pozostałóści środków finansowych gromadzonych na wydzielonym rachunku jednostki budżetowej",10]
[null,80104,null,"Przedszkola",{"$f":"SUM(E69:E69)","v":7000}]
[null,null,"0660","Wpływy z opłat za korzystanie z wychowania przedszkolnego",7000]
[null,80106,null,"Inne formy wychowania przedszkolnego",{"$f":"SUM(E71)","v":7000}]
[null,null,"0660","Wpływy z opłat za korzystanie z wychowania przedszkolnego",7000]
[null,80110,null,"Gimnazja",{"$f":"SUM(E73)","v":20}]
[null,null,"2400","Wpływy do budżetu pozostałóści środków finansowych gromadzonych na wydzielonym rachunku jednostki budżetowej",20]
[852,null,null,"Pomoc Społeczna",{"$f":"SUM(E75+E80+E83+E87+E90+E85)","v":2606446}]
[null,85212,null,"Świadczenia rodzinne , świadczenie z funduszu alimentacyjnego oraz składki na ubezpieczenia emerytalne i rentowe z ubezpieczenia społecznego",{"$f":"SUM(E76:E79)","v":2364122}]
[null,null,"0920","Wpływy z pozostałych odsetek",3000]
[null,null,"2010","Dotacje celowe otrzymane z budżetu państwa na realizację zadań bieżących z zakresu administracji rządowej oraz innych zadań zleconych gminie ustawami",2348122]
[null,null,"2360","Dochody jst związane z realizacją zadań z zakresu administracji rządowej oraz innych zadań zleconych ustawami",3000]
[null,null,"2910","Wpływy ze zwrotów dotacji oraz płatności, w tym wykorzystanych niezgodnie z przeznaczeniem lub wykorzystanych z naruszeniem procedur, o których mowa w art.184 ustawy, pobranych nienależnie lub w nadmiernej wysokości",10000]
[null,85213,null,"Składki na ubezpieczenie zdrowotne opłacane za osoby pobierające niektóre świadczenia z pomocy społecznej, niektóre świadczenia rodzinne oraz za osoby uczestniczące w zajęciach w centrum integracji społecznej",{"$f":"SUM(E82+E81)","v":15501}]
[null,null,"2010","Dotacje celowe otrzymane z budżetu państwa na realizację zadań bieżących z zakresu administracji rządowej oraz innych zadań zleconych gminie ustawami",6561]
[null,null,"2030","Dotacje celowe otrzymane z budżetu państwa na realizację własnych zadań bieżących gmin",8940]
[null,85214,null,"Zasiłki i pomoc w naturze oraz składki na ubezpieczenia emerytalne i rentowe",{"$f":"SUM(E84:E84)","v":65339}]
[null,null,"2030","Dotacje celowe otrzymane z budżetu państwa na realizację własnych zadań bieżących gmin",65339]
[null,85216,null,"Zasiłki stałe",{"$f":"SUM(E86)","v":64585}]
[null,null,"2030","Dotacje celowe otrzymane z budżetu państwa na realizację własnych zadań bieżących gmin",64585]
[null,85219,null,"Ośrodki pomocy społecznej",{"$f":"SUM(E88:E89)","v":57324}]
[null,null,"0920","Wpływy z pozostałych odsetek",850]
[null,null,"2030","Dotacje celowe otrzymane z budżetu państwa na realizację własnych zadań bieżących gmin",56474]
[null,85295,null,"Pozostała działalność",{"$f":"SUM(E91:E91)","v":39575}]
[null,null,"2030","Dotacje celowe otrzymane z budżetu państwa na realizację własnych zadań bieżących gminy",39575]
[900,null,null,"Gospodarka komunalna i ochrona środowiska",{"$f":"SUM(E93+E95)","v":299200}]
[null,90019,null,"Wpływy i wydatki związane z gromadzeniem środków z opłat i kar za korzystanie ze środowiska",{"$f":"SUM(E94)","v":10000}]
[null,null,"0690","Wpływy z różnych opłat",10000]
[null,90002,null,"Gospodarka odpadami",{"$f":"SUM(E96)","v":289200}]
[null,null,"0490","Wpływy i innych lokalnych opłat pobieranych przez jst na podstawie odrębnych ustaw",289200]
["bieżące razem:",null,null,null,{"$f":"SUM(E6+E9+E12+E17+E23+E26+E55+E62+E74++E92)","v":14385000}]
[]
["majątkowe"]
["010",null,null,"ROLNICTWO I ŁOWIECTWO",{"$f":"SUM(E101)","v":2800000}]
[null,"01010",null,"Infrastruktura wodociagowa i sanitacyjna wsi",{"$f":"SUM(E102)","v":2800000}]
[null,null,"6257","Dotacje celowe w ramach programów finansowanych z udziałem środków europejskich oraz środków, o których mowa w art. 5 ust.3 pkt.5 lit.a i b  ustawy, lub płatności w ramach budżetu środków europejskich, realizowanych przez jednostki samorządu terytorialnego",2800000]
[600,null,null,"TRANSPORT I ŁĄCZNOŚĆ",{"$f":"SUM(E104)","v":450000}]
[null,60016,null,"Drogi publiczne gminne",{"$f":"SUM(E105)","v":450000}]
[null,null,"6257","Dotacje celowe w ramach programów finansowanych z udziałem środków europejskich oraz środków, o których mowa w art. 5 ust.3 pkt.5 lit.a i b  ustawy, lub płatności w ramach budżetu środków europejskich, realizowanych przez jednostki samorządu terytorialnego",450000]
[900,null,null,"Gospodarka komunalna i ochrona środowiska",{"$f":"SUM(E107)","v":595000}]
[null,90001,null,"Gospodarka ściekowa i ochrona wód",{"$f":"SUM(E108)","v":595000}]
[null,null,"6257","Dotacje celowe w ramach programów finansowanych z udziałem środków europejskich oraz środków, o których mowa w art. 5 ust.3 pkt.5 lit.a i b  ustawy, lub płatności w ramach budżetu środków europejskich, realizowanych przez jednostki samorządu terytorialnego",595000]
[]
["majątkowe razem:",null,null,null,{"$f":"SUM(E100+E103+E106)","v":3845000}]
["Ogółem:",null,null,null,{"$f":"SUM(E97+E110)","v":18230000}]

{"sheet":"2","index":1,"n_rows":77,"n_cols":17,"rows_kept":77,"cut":false,"hidden":false,"merged":[[76,0,76,2],[5,10,6,10],[5,11,6,11],[4,14,4,16],[5,8,6,8],[5,14,6,14],[5,6,5,7],[4,5,4,12],[5,9,6,9],[5,16,6,16],[0,0,0,16],[3,0,6,0],[3,1,6,1],[3,2,6,2],[3,3,6,3],[3,4,3,16],[4,4,6,4],[4,13,6,13],[5,5,6,5]]}
["Wydatki budżetu gminy na  2016 r."]
[]
[]
["Dział","Rozdział","Nazwa","Plan\n","z tego:"]
[null,null,null,null,"Wydatki bieżące","z tego:",null,null,null,null,null,null,null,"Wydatki majątkowe","z tego:"]
[null,null,null,null,null,"wydatki jednostek budżetowych","z tego",null,"dotacje na zadania bieżące","świadczdenia na rzecz osób fizycznych","wydatki na programy finansowane z udziałem środków, o których mowa w art. 5 ust.1 pkt 2 i 3","wypłaty z tytułu poręczeń i gwarancji",null,null,"inwestycje i zakupy inwestycyjne","w tym","zakup i objęcie akcji i udziałów oraz wniesienie wkładów do spółek prawa handlowego"]
[null,null,null,null,null,null,"wynagrodzenia i składki od nich naliczane","wydatki związane z realizacją statutowych zadań",null,null,null,null,"obsługa długu",null,null," na programy finansowane z udziałem środków, o których mowa w art. 5 ust. 1 pkt 2 i 3"]
[1,2,3,4,5,6,7,8,9,10,11,12,13,14,15,16,17]
["010",null,"Rolnictwo i Łowiectwo",{"$f":"SUM(D10:D12)","v":4077310},{"$f":"SUM(E10:E12)","v":37310},{"$f":"SUM(F10:F12)","v":37310},0,37310,0,0,0,0,null,4040000,4040000,4000000]
[null,"01010","Infrastruktura wodociągowa i sanitacyjna wsi",4055000,15000,15000,null,15000,null,null,null,null,null,4040000,4040000,4000000]
[null,"01030","Izby rolnicze",2310,2310,2310,null,2310]
[null,"01095","Pozostała działalność",20000,20000,20000,null,20000]
["400",null,"Wytwarzanie i zaopatrywanie w energię elektryczną, gaz i wodę",{"$f":"SUM(D14)","v":119000},{"$f":"SUM(E14)","v":119000},0,0,{"$f":"SUM(H14)","v":0},{"$f":"SUM(I14)","v":119000},0]
[null,"40002","Dostarczanie wody",119000,119000,null,null,null,119000]
["600",null,"Transport i łączność",{"$f":"SUM(D16:D19)","v":926350},{"$f":"SUM(E16:E19)","v":246350},165750,61450,104300,80000,600,null,null,null,680000,680000,670000]
[null,"60004","Lokalny transport zbiorowy",12000,12000,12000,0,12000]
[null,"60011","Drogi publiczne krajowe",800,800,800,0,800]
[null,"60014","Drogi publiczne powiatowe",10500,10500,10500,0,10500,null,null,null,null,null,0,0]
[null,"60016","Drogi publiczne gminne",903050,223050,142450,61450,81000,80000,600,null,null,null,680000,680000,670000]
["700",null,"Gospodarka mieszkaniowa",{"$f":"SUM(D21)","v":118600},{"$f":"SUM(E21)","v":118600},{"$f":"SUM(F21)","v":118600},{"$f":"SUM(G21)","v":0},{"$f":"SUM(H21)","v":118600},0,0]
[null,"70005","Gospodarka gruntami          i nieruchomościami",118600,118600,118600,null,118600]
["710",null,"Działalność usługowa",{"$f":"SUM(D23:D24)","v":2500},{"$f":"SUM(E23:E24)","v":2500},{"$f":"SUM(F23:F24)","v":2500},{"$f":"SUM(G23:G24)","v":0},{"$f":"SUM(H23:H24)","v":2500}]
[null,"71035","Cmentarze",1500,1500,1500,0,1500]
[null,"71095","Pozostała działalność",1000,1000,1000,0,1000]
["750",null,"Administracja publiczna",{"$f":"SUM(D26:D30)","v":1715951},1715951,1586851,1330151,256700,0,129100]
[null,"75011","Urzędy wojewódzkie",47151,47151,47151,47151]
[null,"75022","Rady gmin",117000,117000,4000,0,4000,0,113000]
[null,"75023","Urzędy gminy",1460200,1460200,{"$f":"SUM(G28+H28)","v":1459700},1263000,196700,0,500]
[null,"75075","Promocja jednostek samorządu terytorialnego",30000,30000,30000,0,30000,null,0]
[null,"75095","Pozostała działalność",61600,61600,{"$f":"SUM(G30+H30)","v":46000},20000,26000,null,15600]
["751",null,"Urzędy naczelnych organów władzy państwowej, kontroli           i ochrony prawa oraz sądownictwa",{"$f":"SUM(D32)","v":1079},{"$f":"SUM(E32)","v":1079},{"$f":"SUM(F32)","v":1079},{"$f":"SUM(G32)","v":1079},0,0,0]
[null,"75101","Urzędy naczelnych organów władzy państwowej, kontroli            i ochrony państwa",1079,1079,1079,1079]
["754",null,"Bezpieczeństwo publiczne i ochrona przeciwpożarowa",{"$f":"SUM(D34:D35)","v":87000},87000,77000,8450,68550,0,10000]
[null,"75412","Ochotnicze straże pożarne",52700,52700,{"$f":"SUM(G34+H34)","v":42700},8450,34250,0,10000]
[null,"75421","Zarzadzanie kryzysowe",34300,34300,{"$f":"SUM(G35+H35)","v":34300},0,34300]
["757",null,"Obsługa długu publicznego",{"$f":"SUM(D37)","v":180000},{"$f":"SUM(E37)","v":180000},0,0,0,0,0,0,0,{"$f":"SUM(M37)","v":180000}]
[null,"75702","Obsługa papierów wartościowych, kredytów           i pożyczek jst",180000,180000,null,null,null,null,null,null,null,180000]
["758",null,"Różne rozliczenia",{"$f":"SUM(D39)","v":120000},{"$f":"SUM(E39)","v":120000},{"$f":"SUM(F39)","v":120000},{"$f":"SUM(G39)","v":0},{"$f":"SUM(H39)","v":120000}]
[null,"75818","Rezerwy ogólne i celowe",120000,120000,120000,0,120000]
["801",null,"Oświata i Wychowanie",{"$f":"SUM(D41:D49)","v":6939523},6939523,6290423,4863700,1426723,380000,269100]
[null,"80101","Szkoły podstawowe",3442943,3442943,{"$f":"SUM(G41+H41)","v":2922943},2607100,315843,380000,140000]
[null,"80103","Oddziały przedszkolne w szkołach podstawowych",254580,254580,{"$f":"SUM(G42+H42)","v":240180},211200,28980,0,14400]
[null,"80104","Przedszkola",158800,158800,154100,139900,14200,0,4700]
[null,"80106","Inne formy wychowania przedszkolnego",353900,353900,338900,270500,68400,null,15000]
[null,"80110","Gimnazja",2296400,2296400,2204400,1526000,678400,0,92000]
[null,"80113","Dowożenie uczniów do szkół",322600,322600,322600,69600,253000]
[null,"80146","Dokształcanie i doskonalenie nauczycieli",8500,8500,8500,0,8500]
[null,"80150","Realizacja zadań wymagających stosowania specjalnej organizacji nauki i metod pracy dla dzieci i młodzieży w szkołach podstawowych, gimnazjach, liceach ogólnokształcących, liceach profilowanych i szkołach zawodowych oraz szkołach artystycznych",44000,44000,41000,39400,1600,null,3000]
[null,"80195","Pozostała działalność",57800,57800,57800,0,57800]
["851",null,"Ochrona zdrowia",{"$f":"SUM(D51:D52)","v":65000},65000,55000,26100,28900,10000]
[null,"85153","Zwalczanie narkomanii",4000,4000,4000,0,4000]
[null,"85154","Przeciwdziałanie alkoholizmowi",61000,61000,{"$f":"SUM(G52+H52)","v":51000},26100,24900,10000]
["852",null,"Pomoc społeczna",{"$f":"SUM(D54:D63)","v":3129444},3129444,725830,534588,191242,0,2403614]
[null,"85202","Domy pomocy społecznej",86000,86000,86000,0,86000]
[null,"85212","Świadczenia rodzinne , świadczenia z funduszu alimentacyjnego oraz składki na ubezpieczenia emerytalne i rentowe z ubezpieczenia społecznego",2361122,2361122,{"$f":"SUM(G55+H55)","v":219742},200161,19581,0,2141380]
[null,"85213","Składki na ubezpieczenia zdrowotne opłacane za osoby pobierające niektóre świadczenia z pomocy społecznej, niektóre świadczenia rodzinne oraz za osoby uczestniczące                             w zajęciach w centrum integracji społecznej",15501,15501,{"$f":"SUM(G56+H56)","v":15501},0,15501]
[null,"85214","Zasiłki i pomoc w naturze oraz składki na ubezpieczenia emerytalne            i rentowe",116674,116674,{"$f":"SUM(G57+H57)","v":0},null,null,0,116674]
[null,"85215","Dodatki mieszkaniowe",2000,2000,0,null,null,0,2000]
[null,"85216","Zasiłki stałe",64585,64585,0,null,null,0,64585]
[null,"85218","Powiatowe centra pomocy rodzinie",8000,8000,8000,0,8000]
[null,"85219","Ośrodki pomocy społecznej",391157,391157,387757,325747,62010,0,3400]
[null,"85228","Usługi opiekuńcze i specjalistyczne usługi opiekuńcze",8830,8830,8830,8680,150]
[null,"85295","Pozostała działalność",75575,75575,0,null,null,0,75575]
["900",null,"Gospodarka komunalna                   i ochrona środowiska",{"$f":"SUM(D65:D70)","v":1679400},{"$f":"SUM(E65:E70)","v":765400},{"$f":"SUM(F65:F70)","v":585400},{"$f":"SUM(G65:G70)","v":49200},{"$f":"SUM(H65:H70)","v":536200},{"$f":"SUM(I65:I70)","v":180000},0,0,0,null,914000,914000,850000]
[null,"90001","Gospodarka ściekowa           i ochrona wód",1094000,180000,null,0,0,180000,null,null,null,null,914000,914000,850000]
[null,"90002","Gospodarka odpadami",289200,289200,{"$f":"SUM(G66+H66)","v":289200},49200,240000]
[null,"90003","Oczyszczanie miast i wsi",6000,6000,{"$f":"SUM(G67+H67)","v":6000},0,6000]
[null,"90015","Oświetlenia ulic, placów            i dróg",219700,219700,{"$f":"SUM(G68+H68)","v":219700},0,219700]
[null,"90019","Wpływy i wydatki związane z gromadzeniem środków                 z opłat i kar za korzystanie ze środowiska",30000,30000,{"$f":"SUM(G69+H69)","v":30000},0,30000]
[null,"90095","Pozostała działalność",40500,40500,{"$f":"SUM(G70+H70)","v":40500},0,40500]
["921",null,"Kultura i ochrona dziedzictwa naturalnego",{"$f":"SUM(D72:D73)","v":298000},298000,18000,0,18000,280000,null,null,null,null,{"$f":"SUM(N72:N73)","v":0},{"$f":"SUM(O72:O73)","v":0},{"$f":"SUM(P72:P73)","v":0}]
[null,"92116","Biblioteki",280000,280000,null,null,0,280000]
[null,"92195","Pozostała działalność",18000,18000,18000,0,18000,null,null,null,null,null,0,0,0]
["926",null,"Kultura fizyczna i sport",{"$f":"SUM(D75:D76)","v":70843},70843,35843,0,35843,35000]
[null,"92605","Zadania w zakresie kultury fizycznej",40843,40843,{"$f":"SUM(G75+H75)","v":5843},0,5843,35000]
[null,"92695","Pozostała działalność",30000,30000,{"$f":"SUM(G76+H76)","v":30000},0,30000]
["Ogółem wydatki",null,null,{"$f":"SUM(D9+D13+D15+D20+D22+D25+D31+D33+D36+D38+D40+D50+D53+D64+D71+D74)","v":19530000},{"$f":"SUM(E9+E13+E15+E20+E22+E25+E31+E33+E36+E38+E40+E50+E53+E64+E71+E74)","v":13896000},9819586,6874718,2944868,1084000,2812414,0,0,180000,5634000,5634000,5520000,0]

{"sheet":"3","index":2,"n_rows":16,"n_cols":12,"rows_kept":16,"cut":false,"hidden":false,"merged":[[15,0,15,3],[3,6,3,10],[4,6,7,6],[4,7,7,7],[4,9,7,9],[4,10,7,10],[5,8,7,8],[0,0,0,11],[2,0,7,0],[2,1,7,1],[2,2,7,2],[2,3,7,3],[2,11,7,11],[3,5,7,5],[2,4,7,4],[2,5,2,10]]}
["Limity wydatków na wieloletnie przedsięwzięcia planowane do poniesienia w 2016 roku"]
[]
["Lp.","Dział","Rozdz.","Nazwa przedsięwzięcia","Łączne nakłady finansowe","Planowane wydatki",null,null,null,null,null,"Jednostka org. realizująca zadanie lub koordynująca program"]
[null,null,null,null,null,"rok budżetowy 2016 (7+8+10+11)","w tym źródła finansowania"]
[null,null,null,null,null,null,"dochody własne jst","kredyty\ni pożyczki","w tym:","dotacje i środki pochodzące z innych  źr.*","środki wymienione\nw art. 5 ust. 1 pkt 2 i 3 u.f.p."]
[null,null,null,null,null,null,null,null,"kredyty i pożyczki zaciągnięte na realizację zadania pod refundację wydatków"]
[]
[]
[1,2,3,4,5,6,7,8,9,10,11,12]
[null,null,null,"wydatki majątkowe"]
["1.","010","01010","Budowa kanalizacji sanitarnej w miejscowościach Występa, Zalezianka, Stawik , Jaśle                    2009-2018",12000000,4000000,null,1200000,null,null,2800000,"Urząd Gminy"]
["2.","010","01010","Budowa kanalizacji sanitarnej w miejscowości Podzagnańszcze 2016-2022",3900000,0,null,null,null,null,null,"Urząd Gminy"]
["3.",900,9001,"Remont istniejącej oczyszczalni ścieków w Kamionkach poprzez dostawę i montaż urządzeń  ( dotacja )  2014-2016",220650,64000,64000,null,null,null,null,"Zakład Gospodarki Komunalnej w Łącznej"]
["4.",900,90001,"Rozbudowa istniejącej oczyszczalni ścieków w Kamionkach 2016-2017",1700000,850000,null,255000,null,null,595000,"Urząd Gminy"]
[null,null,null,"razem:"]
["Ogółem",null,null,null,{"$f":"SUM(E11:E15)","v":17820650},{"$f":"SUM(F11+F13+F14)","v":4914000},64000,1455000,0,0,3395000]

{"sheet":"4","index":3,"n_rows":27,"n_cols":11,"rows_kept":27,"cut":false,"hidden":false,"merged":[[0,0,0,10],[2,0,7,0],[2,1,7,1],[2,2,7,2],[2,3,7,3],[2,4,2,9],[2,10,7,10],[3,4,7,4],[3,5,3,9],[12,0,12,3],[4,6,7,6],[4,8,7,8],[4,9,7,9],[4,5,7,5],[5,7,7,7]]}
["Zadania inwestycyjne roczne w 2016 r."]
[null,null,null,null,null,null,null,null,null,null,"w złotych"]
["Lp.","Dział","Rozdz.","Nazwa zadania inwestycyjnego","Planowane wydatki",null,null,null,null,null,"Jednostka org. realizująca zadanie lub koordynująca program"]
[null,null,null,null,"rok budżetowy 2016 (6+7+9+10)","w tym źródła finansowania"]
[null,null,null,null,null,"dochody własne jst","kredyty\ni pożyczki","w tym:","dotacje i środki pochodzące\nz innych  źr.*","środki wymienione\nw art. 5 ust. 1 pkt 2 i 3 u.f.p."]
[null,null,null,null,null,null,null,"kredyty i pożyczki zaciągnięte na realizację zadania pod refundację wydatków"]
[]
[]
[1,2,3,4,5,6,7,8,9,10,11]
[null,"010","01010","Modernizacja ujęcia wody Czerwona Górka",40000,40000,null,null,null,null,"Urząd Gminy Łączna"]
["1.",600,60016,"Budowa wiat przystankowych ",10000,10000,null,null,null,null,"Urząd Gminy Łączna"]
["2.","600","60016","Przebudowa drogi gminnej nr 1516017 w miejscowości Czerwona Górka",670000,null,220000,null,null,450000,"Urząd Gminy Łączna"]
["Ogółem",null,null,null,{"$f":"SUM(E10:E12)","v":720000},{"$f":"SUM(F10:F12)","v":50000},{"$f":"SUM(G12:G12)","v":220000},null,null,{"$f":"SUM(J12:J12)","v":450000},"x"]
[]
[]
[]
[]
[]
[]
[]
[]
[]
[]
[]
[]
[]
[null,null,null,null,null,null,"       "]

{"sheet":"n.","index":4,"n_rows":78,"n_cols":9,"rows_kept":78,"cut":false,"hidden":false,"merged":[[9,8,10,8],[6,0,6,8],[9,0,10,0],[9,1,10,1],[9,2,10,2],[9,3,10,3],[9,4,10,4],[9,5,10,5],[9,6,9,7]]}
[null,null,null,null,null,null,"Załącznik Nr 4"]
[null,null,null,null,null,null,"do Uchwały Nr……………"]
[null,null,null,null,null,null,"Rady Gminy Łączna"]
[null,null,null,null,null,null,"z dnia ………………….."]
[]
[]
["Wydatki na programy i projekty realizowane ze środków pochodzących z budżetu Unii Europejskiej oraz innych źródeł zagranicznych, niepodlegających zwrotowi na 2016 rok"]
[]
[]
["L.p.","Projekt","Okres realizacji zadania","Jednostka org. realizująca zadanie lub koordynująca program","Dział","Rozdział","Przewidywane nakłady i źródła finansowania",null,"Wydatki w roku budżetowym 2016"]
[null,null,null,null,null,null,"źródło","kwota"]
[1,2,3,4,5,6,7,8,9]
["1.","Program:  PROW    ","2009-2015","Urząd Gminy","010","01010","Wartość zadania:",{"$f":"SUM(H18)","v":5100000},{"$f":"SUM(I18)","v":1994229}]
[null,"Priorytet:                ",null,null,null,null,"Wydatki bieżące:"]
[null,"Działanie:3.2.1 Podstawowe usługi dla gospodarki i ludności wiejskiej",null,null,null,null,"- środki z budżetu j.s.t."]
[null,"Projekt: \"Budowa kanalizacji sanitarnej w miejscowościach Gózd i Łączna\".",null,null,null,null,"- środki z budżetu krajowego"]
[null,null,null,null,null,null,"- środki z UE oraz innych źródeł zagranicznych"]
[null,null,null,null,null,null,"Wydatki majątkowe:",{"$f":"SUM(H19:H21)","v":5100000},{"$f":"SUM(I19:I21)","v":1994229}]
[null,"   ",null,null,null,null,"- środki z budżetu j.s.t.",2550000,795000]
[null,null,null,null,null,null,"- środki z budżetu krajowego"]
[null,null,null,null,null,null,"- środki z UE oraz innych źródeł zagranicznych",2550000,1199229]
[null,null,null,null,null,null,"w tym: kredyty i pożyczki zaciągane na wydatki refundowane ze środków UE"]
["2.","Program:   Regionalny Program Operacyjny Województwa Świętokrzyskiego      ","2007-2015","Urząd Gminy",720,72095,"Wartość zadania:",{"$f":"SUM(H28)","v":259862.80000000002},{"$f":"SUM(I28)","v":214603}]
[null,"Priorytet:Wspieranie innowacyjności, budowa społeczeństwa informacyjnego oraz wzrost potencjału                  ",null,null,null,null,"Wydatki bieżące:"]
[null,"Działanie:2.2 Budowa infrastruktury społeczeństwa infromacyjnego",null,null,null,null,"- środki z budżetu j.s.t."]
[null,"Projekt:\"e- świętokrzyskie Rozbudowa Infrastruktury Informatycznej jst 2007-2013\"",null,null,null,null,"- środki z budżetu krajowego"]
[null,null,null,null,null,null,"- środki z UE oraz innych źródeł zagranicznych"]
[null,null,null,null,null,null,"Wydatki majątkowe:",{"$f":"SUM(H29:H31)","v":259862.80000000002},{"$f":"SUM(I29:I32)","v":214603}]
[null,"   ",null,null,null,null,"- środki z budżetu j.s.t.",8623.16,32191]
[null,null,null,null,null,null,"- środki z budżetu krajowego"]
[null,null,null,null,null,null,"- środki z UE oraz innych źródeł zagranicznych",251239.64,182412]
[null,null,null,null,null,null,"w tym: kredyty i pożyczki zaciągane na wydatki refundowane ze środków UE"]
[]
["3.","Program:   Regionalny Program Operacyjny Województwa Świętokrzyskiego      ","2007-2015","Urząd Gminy",720,72095,"Wartość zadania:",85000,{"$f":"SUM(I39)","v":36789}]
[null,"Priorytet:Wspieranie innowacyjności, budowa społeczeństwa informacyjnego oraz wzrost potencjału                  ",null,null,null,null,"Wydatki bieżące:"]
[null,"Działanie:2.2 Budowa infrastruktury społeczeństwa infromacyjnego",null,null,null,null,"- środki z budżetu j.s.t."]
[null,"Projekt:\"e- świętokrzyskie Budowa Systemu Informacji Przestrzennej Województwa Świętokrzyskiego\" jst 2007-2013\"",null,null,null,null,"- środki z budżetu krajowego"]
[null,null,null,null,null,null,"- środki z UE oraz innych źródeł zagranicznych"]
[null,null,null,null,null,null,"Wydatki majątkowe:",{"$f":"SUM(H34:H38)","v":85000},{"$f":"SUM(I40:I42)","v":36789}]
[null,"   ",null,null,null,null,"- środki z budżetu j.s.t.",20000,5518]
[null,null,null,null,null,null,"- środki z budżetu krajowego"]
[null,null,null,null,null,null,"- środki z UE oraz innych źródeł zagranicznych",{"$f":"SUM(I42)","v":31271},31271]
[null,null,null,null,null,null,"w tym: kredyty i pożyczki zaciągane na wydatki refundowane ze środków UE"]
["4.","Program:   Operacyjny Kapitał Ludzki     ","2013-2015","Urząd Gminy",853,85395,"Wartość zadania:",{"$f":"SUM(H45+H49)","v":571113},{"$f":"SUM(I45+I49)","v":190343.87999999998}]
[null,"Priorytet:  Rozwój wykształcenia i kompetencji w regionie",null,null,null,null,"Wydatki bieżące:",{"$f":"SUM(H46:H48)","v":533113},{"$f":"SUM(I46:I48)","v":190343.87999999998}]
[null,"Działanie: 9.1 Wyrównanie szans edukacyjnych i zapewnienie wysokiej jakości usług edukacyjnych świadczonych w systemie oświaty",null,null,null,null,"- środki z budżetu j.s.t."]
[null,"Projekt:  Wyrównywanie szans w Gminie Łączna",null,null,null,null,"- środki z budżetu krajowego",79966.95,28916.55]
[null,null,null,null,null,null,"- środki z UE oraz innych źródeł zagranicznych",453146.05,161427.32999999999]
[null,null,null,null,null,null,"Wydatki majątkowe:",{"$f":"SUM(H50:H52)","v":38000},{"$f":"SUM(I50:I52)","v":0}]
[null,null,null,null,null,null,"- środki z budżetu j.s.t."]
[null,null,null,null,null,null,"- środki z budżetu krajowego",5700]
[null,null,null,null,null,null,"- środki z UE oraz innych źródeł zagranicznych",32300]
[null,null,null,null,null,null,"w tym: kredyty i pożyczki zaciągane na wydatki refundowane ze środków UE"]
["5.","Program:   Operacyjny Kapitał Ludzki     ",2015,"GOPS Łączna",853,85395,"Wartość zadania:",{"$f":"SUM(H55+H59)","v":94492},{"$f":"SUM(I55+I59)","v":94491.55}]
[null,"Priorytet:  Promocja integracji społecznej",null,null,null,null,"Wydatki bieżące:",{"$f":"SUM(H56:H58)","v":94492},{"$f":"SUM(I56:I58)","v":94491.55}]
[null,"Działanie: 7.1 Rozwój i upowszechnianie aktywnej integracji",null,null,852,85214,"- środki z budżetu j.s.t.",9922,9922]
[null,"Projekt: Dziś szansą na lepsze jutro",null,null,null,null,"- środki z budżetu krajowego",4253.8500000000004,4251.3500000000004]
[null,null,null,null,null,null,"- środki z UE oraz innych źródeł zagranicznych",80316.149999999994,80318.2]
[null,null,null,null,null,null,"Wydatki majątkowe:"]
[null,null,null,null,null,null,"- środki z budżetu j.s.t."]
[null,null,null,null,null,null,"- środki z budżetu krajowego"]
[null,null,null,null,null,null,"- środki z UE oraz innych źródeł zagranicznych"]
[null,null,null,null,null,null,"w tym: kredyty i pożyczki zaciągane na wydatki refundowane ze środków UE"]
[]
[null,"Ogółem wydatki",null,null,null,null,null,{"$f":"SUM(H66+H74)","v":6066816.8000000007},{"$f":"SUM(I66+I74)","v":2520534.4300000002}]
[null,"Wydatki bieżące:",null,null,null,null,null,{"$f":"SUM(+H68+H69+H67)","v":617683},{"$f":"SUM(+I68+I69+I67)","v":274913.43}]
[null,"- środki z budżetu j.s.t.",null,null,null,null,null,{"$f":"SUM(H46)","v":0},{"$f":"SUM(I46)","v":0}]
[null,"- środki z budżetu krajowego",null,null,null,null,null,{"$f":"SUM(H47+H57)","v":84220.800000000003},{"$f":"SUM(I47+I57)","v":33167.9}]
[null,"- środki z UE oraz innych źródeł zagranicznych",null,null,null,null,null,{"$f":"SUM(H48+H58)","v":533462.19999999995},{"$f":"SUM(I48+I58)","v":241745.52999999997}]
[]
[]
[]
[null,"w tym: kredyty i pożyczki zaciągane na wydatki refundowane ze środków UE"]
[null,"Wydatki majątkowe:",null,null,null,null,0,{"$f":"SUM(H75:H77)","v":5449133.8000000007},{"$f":"SUM(I75:I77)","v":2245621}]
[null,"- środki z budżetu j.s.t.",null,null,null,null,null,{"$f":"SUM(H19+H29+H40)","v":2578623.16},{"$f":"SUM(I19+I29+I40)","v":832709}]
[null,"- środki z budżetu krajowego",null,null,null,null,null,{"$f":"SUM(H51)","v":5700},{"$f":"SUM(I51)","v":0}]
[null,"- środki z UE oraz innych źródeł zagranicznych",null,null,null,null,null,{"$f":"SUM(H42+H31+H21+H52)","v":2864810.64},{"$f":"SUM(I42+I31+I21)","v":1412912}]
[null,"w tym: kredyty i pożyczki zaciągane na wydatki refundowane ze środków UE"]

{"sheet":"5","index":5,"n_rows":31,"n_cols":4,"rows_kept":31,"cut":false,"hidden":false,"merged":[[7,0,7,1],[21,0,21,1],[0,0,0,3],[3,0,5,0],[3,1,5,1],[3,2,5,2],[3,3,5,3]]}
["Przychody i rozchody budżetu w 2016 r."]
[]
[null,null,null,"w złotych"]
["Lp.","Treść","Klasyfikacja\n§","Kwota\n2016 r."]
[]
[]
[1,2,3,4]
["Przychody ogółem:",null,null,{"$f":"SUM(D10:D21)","v":2250000}]
["I","Kredyty i pożyczki",null,{"$f":"SUM(D10)","v":2250000}]
["1.","Kredyty","§ 952",2250000]
["1.1","Kredyty zaciągnięte w związku z umową zawartą z podmiotem dysponującym środkami pochodzącymi z budżetu U.E.","§ 952"]
["2.","Pożyczki","§ 952"]
["3.","Pożyczki na finansowanie zadań realizowanyz udziałem środków pochodzących z budżetu U.E.","§ 903"]
["4.","Papiery wartościowe ( obligacje) których zbywalność jest ograniczona","§ 931"]
["4.1","Papiery wartościowe ( obligacje) których zbywalność jest ograniczona, emitowane w związku z umową zawartą z podmiotem dysponującym środkami pochodzącymi z budżetu U. E","§ 931"]
["5.","Papiery wartościowe ( obligacje) dopuszczone do obrotu zorganizowanego, czyli takie, dla których istnieje płynny rynek wtórny","§ 931"]
["6.","Nadwyżka z lat ubiegłych","§ 957"]
["7.","Wolne środki art. 217 ust.2 pkt.6 u.f.p","§ 950"]
["8.","Spłata pożyczek udzielonych","§ 951"]
["9.","Przelewy z rachunku lokat","§ 994"]
["10.","Prywatyzacja majątku j.s.t","§ 941 -44"]
["Rozchody ogółem:",null,null,{"$f":"SUM(D23:D25)","v":950000}]
["1.","Spłaty kredytów","§ 992",810181]
["1.1","Spłaty kredytów zaciągniętych w związku z zawarciem umowy z podmiotem dysponującym środkami pochodzącymi z budżetu U. E","§ 992"]
["2.","Spłaty pożyczek","§ 992",139819]
["3.","Spłaty pożyczek na finansowanie zadań realizowanych z udziałem środków pochodzących z budżetu U. E","§ 963"]
["4.","Wykup obligacji komunalnych, których zdolność jest ograniczona","§ 982"]
["4.1","Wykup obligacji komunalnych, których zdolność jest ograniczona w związku z zawarciem umowy z podmiotem dysponującym środkami pochodzącymi z budżetu U.e","§ 982"]
["5.","Wykup papierów wartościowych dopuszczonych do obrotu zorganizowanego, czyli takie, dla których istnieje płynny rynek wtórny.","§ 982"]
["6.","Udzielone pozyczki","§ 991"]
["7.","Przelewy na rachunki lokat","§ 994"]

{"sheet":"6","index":6,"n_rows":27,"n_cols":14,"rows_kept":27,"cut":false,"hidden":false,"merged":[[12,0,12,2],[3,4,6,4],[3,5,3,13],[4,5,6,5],[4,6,4,10],[4,11,6,11],[5,12,6,12],[4,12,4,13],[0,0,0,13],[3,0,6,0],[3,1,6,1],[3,2,6,2],[3,3,6,3],[5,6,5,7],[5,8,6,8],[5,9,6,9],[5,10,6,10]]}
["Dochody i wydatki związane z realizacją zadań z zakresu administracji rządowej i innych zadań zleconych odrębnymi ustawami w  2016 r."]
[]
[]
["Dział","Rozdział","§","Dotacje ogółem","Wydatki\nna 2016 r.","z tego:"]
[null,null,null,null,null,"Wydatki bieżące","z tego:",null,null,null,null,"Wydatki majątkowe","z tego:"]
[null,null,null,null,null,null,"Wydatki jednostek budżetowych",null,"Dotacje na zadania bieżące","Świadczenia na rzecz osób fizycznych","Wydatki na programy finansowane z udziałem środków, o których mowa w art. 5 ust. 1 pkt 2 i 3",null,"inwestycje i zakupy inwestycyjne","w tym:"]
[null,null,null,null,null,null,"wynagrodzenia i składki od nich naliczane","wydatki związane z realizacją statutowych zadań",null,null,null,null,null,"wydatki na programy finansowane z udziałem środków, o których mowa w art. 5 ust. 1 pkt 2 i 3"]
[1,2,3,4,5,6,7,8,9,10,11,12,13,14]
[750,75011,2010,47151,47151,{"$f":"SUM(E9)","v":47151},{"$f":"SUM(F9)","v":47151}]
[751,75101,2010,1079,1079,1079,1079]
[852,85212,2010,2348122,2348122,2348122,200161,6581,null,2141380]
[852,85213,2010,6561,6561,6561,null,6561]
["Ogółem",null,null,{"$f":"SUM(D9:D12)","v":2402913},2402913,2402913,248391,13142,0,2141380]
[]
[]
[]
[]
[]
[]
[]
[]
[]
[]
[]
[]
[]
[null,null,null,null,null,null,null,null,null,null,null," "]

{"sheet":"n","index":7,"n_rows":21,"n_cols":16,"rows_kept":21,"cut":false,"hidden":false,"merged":[[20,0,20,2],[5,6,5,7],[3,0,6,0],[3,1,6,1],[3,2,6,2],[3,3,6,3],[4,5,6,5],[3,4,6,4],[3,5,3,15],[4,6,4,10],[0,0,0,15],[5,8,6,8],[5,9,6,9],[5,10,6,10],[5,12,6,12],[4,11,6,11],[4,12,4,15],[5,14,6,14],[5,15,6,15]]}
["Dochody i wydatki związane z realizacją zadań z zakresu administracji rządowej realizowanych na podstawie porozumień z organami administracji rządowej w 2011 r."]
[]
[null,null,null,null,null,null,null,null,null,null,null,null,null,null,null,"w  złotych"]
["Dział","Rozdział","§","Dotacje ogółem","Wydatki\nna 2011 r.","z tego:"]
[null,null,null,null,null,"Wydatki bieżące","z tego:",null,null,null,null,"Wydatki majątkowe","z tego:"]
[null,null,null,null,null,null,"Wydatki jednostek budżetowych",null,"Dotacje na zadania bieżące","Świadczenia na rzecz osób fizycznych","Wydatki na programy finansowane z udziałem środków, o których mowa w art. 5 ust. 1 pkt 2 i 3",null,"inwestycje i zakupy inwestycyjne","w tym:","zakup i objęcie akcji i udziałów","wniesienie wkładów do spółek prawa handlowego"]
[null,null,null,null,null,null,"wynagrodzenia i składki od nich naliczane","wydatki związane z realizacją statutowych zadań",null,null,null,null,null,"wydatki na programy finansowane z udziałem środków, o których mowa w art. 5 ust. 1 pkt 2 i 3"]
[1,2,3,4,5,6,7,8,9,10,11,12,13,14,15,16]
[]
[]
[]
[]
[]
[]
[]
[]
[]
[]
[]
[]
["Ogółem"]

{"sheet":"n..","index":8,"n_rows":14,"n_cols":20,"rows_kept":14,"cut":false,"hidden":false,"merged":[[6,13,7,13],[6,16,7,16],[4,6,7,6],[13,0,13,2],[4,0,7,0],[9,0,9,2],[11,0,11,2],[4,1,7,1],[4,2,7,2],[1,0,1,19],[4,3,7,3],[4,5,7,5],[6,11,7,11],[6,12,7,12],[5,15,7,15],[4,4,7,4],[4,7,4,19],[5,7,7,7],[6,10,7,10],[6,19,7,19],[5,8,5,14],[6,14,7,14],[6,8,6,9],[5,16,5,19],[6,18,7,18]]}
[]
["Dochody i wydatki związane z realizacją zadań realizowanych na podstawie porozumień (umów) między jednostkami samorządu terytorialnego w 2016 r."]
[]
[null,null,null,null,null,null,null,null,null,null,null,null,null,null,null,null,null,null,null,"w  złotych"]
["Nazwa zadania","Dział","Rozdział","Dochody ogółem","§","Wydatki ogółem","§","z tego:"]
[null,null,null,null,null,null,null,"Wydatki bieżące","z tego:",null,null,null,null,null,null,"Wydatki majątkowe","z tego:"]
[null,null,null,null,null,null,null,null,"Wydatki jednostek budżetowych",null,"Dotacje na zadania bieżące","Świadczenia na rzecz osób fizycznych","Wydatki na programy finansowane z udziałem środków, o których mowa w art. 5 ust. 1 pkt 2 i 3","Wydatki na obsługę długu (odsetki)","Wydatki\nz tytułu poręczeń\ni gwarancji",null,"inwestycje i zakupy inwestycyjne","w tym:","zakup i objęcie akcji i udziałów","wniesienie wkadów do spółek prawa handlowego"]
[null,null,null,null,null,null,null,null,"wynagrodzenia i składki od nich naliczane","wydatki związane z realizacją statutowych zadań",null,null,null,null,null,null,null,"wydatki na programy finansowane z udziałem środków, o których mowa w art. 5 ust. 1 pkt 2 i 3"]
[1,2,3,4,5,6,7,8,9,10,11,12,13,14,15,16,17,18,19,20]
["I. Dochody i wydatki związane z realizacją zadań realizowanych wspólnie z innymi jednostkami samorządu terytorialnego"]
[]
["II. Dochody i wydatki związane z pomocą rzeczową lub finansową realizowaną na podstawie porozumień między j.s.t."]
["Przebudowa drogi powiatowej w miejscowości Występa","600","60014",6300]
["Ogółem",null,null,null,null,{"$f":"SUM(F11:F13)","v":0},null,null,null,null,null,null,null,null,null,{"$f":"SUM(P11:P13)","v":0},{"$f":"SUM(Q11:Q13)","v":0}]

{"sheet":"7","index":9,"n_rows":15,"n_cols":15,"rows_kept":15,"cut":false,"hidden":false,"merged":[[14,0,14,1],[5,5,7,5],[5,6,5,10],[4,3,7,3],[6,8,7,8],[6,6,6,7],[4,5,4,10],[4,14,7,14],[6,10,7,10],[6,12,7,12],[0,0,0,14],[1,0,1,14],[4,0,7,0],[4,1,7,1],[4,2,7,2],[4,11,4,13],[5,12,5,13],[6,13,7,13],[6,9,7,9],[4,4,7,4],[5,11,7,11]]}
["Plan przychodów i kosztów samorządowych zakładów budżetowych na 2016 r."]
[]
[]
[null,null,null,null,null,null,null,null,null,null,null,null,null,null,"w złotych"]
["Lp.","Wyszczególnienie","Dział","Rozdział","Stan środków obrotowych na początek roku","Przychody",null,null,null,null,null,"Wydatki",null,null,"Stan środków obrotowych na koniec roku"]
[null,null,null,null,null,"ogółem","w tym: dotacja\nz budżetu",null,null,null,null,"ogółem","w tym: "]
[null,null,null,null,null,null,"przedmiotowa",null,"na pierwsze wyposażenie","celowa na zadania realizowane z udziałem środków UE","celowa na inwestycje",null,"wpłata do budżetu","wydatki majątkowe"]
[null,null,null,null,null,null,"kwota netto","VAT"]
[1,2,3,4,5,6,7,8,9,10,11,12,13,14,15]
["1.","Dostarczanie ciepła",400,40001,0,309300,null,null,null,null,null,309200,null,null,100]
["2.","Dostarczanie wody",400,40002,0,613300,110000,9000,null,null,null,613200,null,null,100]
[3,"Zimowe utrzymanie dróg gminnych",600,60016,0,80000,74000,6000,null,null,null,80000,null,null,0]
["4.","Gospodarka ściekowa i ochrona wód",900,90001,0,339000,167000,13000,null,null,null,338900,null,null,100]
["5.","Zakład Gospodarki Komunalnej",900,90017,0,72400,null,null,null,null,null,72300,null,null,100]
["Ogółem",null,null,null,null,{"$f":"SUM(F10:F14)","v":1414000},{"$f":"SUM(G11:G14)","v":351000},{"$f":"SUM(H11:H14)","v":28000},null,null,null,{"$f":"SUM(L10:L14)","v":1413600},null,null,{"$f":"SUM(O10:O14)","v":400}]

{"sheet":"8","index":10,"n_rows":10,"n_cols":8,"rows_kept":10,"cut":false,"hidden":false,"merged":[[0,0,0,7],[1,0,1,7],[9,0,9,1]]}
[" Plan dochodów gromadzonych na wydzielonym rachunku jednostki budżetowej                          wydatki nimi finansowane w 2016 r."]
[]
[]
[null,null,null,null,null,null,null,"w złotych"]
["Lp.","Wyszczególnienie","Dział","Rozdział","Stan środków finansowych na początek roku","Dochody","Wydatki","Stan środków finansowych na koniec roku"]
[1,2,3,4,5,6,7,8]
["1.","Zespół Szkół w Łącznej",801,80110,0,150020,150020,0]
["2.","Szkoła Podstawowa w Goździe",801,80101,0,5010,5010,0]
["3.","Przedszkole w Goździe",801,80104,0,15000,15000,0]
["Ogółem",null,null,null,0,{"$f":"SUM(F7:F9)","v":170030},{"$f":"SUM(G7:G9)","v":170030},0]

{"sheet":"9","index":11,"n_rows":15,"n_cols":6,"rows_kept":15,"cut":false,"hidden":false,"merged":[[1,4,1,5],[3,4,3,5],[5,0,5,5],[14,0,14,3]]}
[null,null,null,null,null,"Załącznik Nr 9"]
[null,null,null,null,"                                 do Uchwały Nr  ………………."]
[null,null,null,null,null,"Rady Gminy Łączna"]
[null,null,null,null,"                                 z dnia …………...."]
[]
["Dotacje przedmiotowe w 2016 roku"]
[null,null,null,null,null,"w złotych"]
["Lp.","Dział","Rozdział","Nazwa jednostki otrzymującej dotacje","Zakres"," Ogółem kwota dotacji"]
[1,2,3,4,5,6]
["I. Dotacje  dla jednostek  sektora finansów publicznych",null,null,null,null,{"$f":"SUM(F15)","v":379000}]
["1.",400,40002,"Zakład Gospodarki Komunalnej w Łącznej","dopłata do cen wody",119000]
["2.",900,90001,"Zakład Gospodarki Komunalnej w Łącznej","dopłata do cen ścieków",180000]
["3.",600,60016,"Zakład Gospodarki Komunalnej w Łącznej","dopłata do odśnieżania 1 km drogi",80000]
["II. Dotacje dla jednostek spoza sektora finansów publicznych"]
["Ogółem",null,null,null,null,{"$f":"SUM(F11:F14)","v":379000}]

{"sheet":"10","index":12,"n_rows":15,"n_cols":5,"rows_kept":15,"cut":false,"hidden":false,"merged":[[6,0,6,4],[14,0,14,3]]}
[]
[null,null,null,null,"Załącznik Nr 10"]
[null,null,null,null,"do Uchwały Nr….."]
[null,null,null,null,"Rady Gminy Łączna"]
[null,null,null,null,"z dnia………."]
[]
["Dotacje podmiotowe w 2016 roku"]
[null,null,null,null,"w złotych"]
["Lp.","Dział","Rozdział","Nazwa jednostki otrzymującej dotacje","Kwota dotacji"]
[1,2,3,4,5]
["I. Dotacje  dla jednostek  sektora finansów publicznych"]
["1.",921,92116,"Gminna Instytucja kultury - biblioteka gminna w Łącznej",280000]
["II.Dotacje dla jednostek spoza sektora finansów publicznych"]
["1.",801,80101,"Stowarzyszenie Rozwoju Społecznego \"Zalezianka\"",380000]
["Ogółem",null,null,null,{"$f":"SUM(E12:E14)","v":660000}]

{"sheet":"11","index":13,"n_rows":16,"n_cols":7,"rows_kept":16,"cut":false,"hidden":false,"merged":[[15,0,15,4],[0,5,0,6],[2,5,2,6],[1,5,1,6],[3,5,3,6],[6,0,6,6]]}
[null,null,null,null,null,"Załącznik nr 11"]
[null,null,null,null,null,"do Uchwały nr ….."]
[null,null,null,null,null,"Rady Gminy Łączna"]
[null,null,null,null,null,"z dnia …….."]
[]
[]
["Dotacje celowe w 2016 roku"]
[null,null,null,null,null,null,"w złotych"]
["Lp.","Dział","Rozdział","§","Nazwa zadania","Jednostka otrzymująca dotację","Kwota dotacji"]
[1,2,3,null,4,5,6]
["                                                                                        I. Dotacje  dla jednostek  sektora finansów publicznych"]
["2.",900,90001,6210,"zadanie pn. \"Remont istniejącej oczyszczalni ścieków w Kamionkach poprzez dostawę i montaż urządzeń\"","Zakład Gospodarki Komunalnej w Łącznej",64000]
["II. Dotacje dla jednostek spoza sektora finansów publicznych"]
["1.",851,85154,2830,"zorganizowanie wypoczynku letniego dla dzieci z rodzin, w których występuje problem alkoholowy","wyłoniona w drodze konkursu",10000]
["2.",926,92605,2830,"zadania z zakresu kultury fizycznej i sportu","wyłoniona w drodze konkursu",35000]
["Ogółem",null,null,null,null,null,{"$f":"SUM(G12:G15)","v":109000}]

{"sheet":"15n","index":14,"n_rows":15,"n_cols":7,"rows_kept":15,"cut":false,"hidden":false,"merged":[[0,0,0,6],[1,0,1,6],[14,0,14,1],[9,0,9,5],[13,0,13,5]]}
["Zadania jednostek pomocnicznych w ramach funduszu sołeckiego"]
["w 2011 roku"]
[]
[]
["Lp.","Nazwa zadania","Jednostka budżetowa realizująca zadanie","Dział","Rozdział","grupa wydatków","kwota"]
[1,2,3,4,5,6,7]
[null,"Sołectwo  ……………………….."]
[]
[]
["Razem"]
[null,"Sołectwo  ……………………….."]
[]
[]
["Razem"]
["Ogółem"]

{"sheet":"16n","index":15,"n_rows":11,"n_cols":7,"rows_kept":11,"cut":false,"hidden":false,"merged":[[0,0,0,5],[3,0,5,0],[3,1,5,1],[3,2,5,2],[3,3,5,3],[3,4,5,4],[6,2,8,2],[6,3,8,3],[6,4,8,4],[6,0,8,0],[6,1,8,1]]}
["Wykaz obowiązujących umów o partnerstwie publiczno-prywatnym"]
["Lp.","Przedmiot umowy","Strony umowy","Okres wykonywania umowy","Łączna kwota wydatków, \nw tym wydatki budżetu","Łączne kwoty wydatków \nw poszczególnych latach, \nw tym kwota wydatków budżetu"]
[1,2,3,4,5,6]
["1."]
[]
[null,null,null,null,null,null," "]
["2."]
[]
[]
["3."]
["4."]

{"sheet":"progn.dłu","index":16,"n_rows":97,"n_cols":14,"rows_kept":97,"cut":false,"hidden":false,"merged":[[94,0,94,7],[96,0,96,7],[2,0,3,0],[2,1,3,1],[2,3,2,7]]}
[null,null,null,null,null,null,null,null,null,"Zał . Nr 3 do wniosku o wydanie opinii"]
[]
["L.p.","Wyszczególnienie",null," Prognoza długu - Przewidywane wykonanie na 31.12"]
[null,null,2008,2009,2010,2011,2012,2013,2014,2015,2016,2017,2018,2019]
[1,2,3,4,5,6,7,8,9,10,11]
[1,"A. Dochody",{"$f":"SUM(C8+C13)","v":11435500},{"$f":"SUM(D8+D13)","v":13710464},{"$f":"SUM(E8+E13)","v":14652732.220000001},{"$f":"SUM(F8+F13)","v":15317488.5},{"$f":"SUM(G8)","v":12309755},{"$f":"SUM(H8+H13)","v":12900000},{"$f":"SUM(I8+I13)","v":12950000},{"$f":"SUM(J8)","v":13130000},{"$f":"SUM(K8)","v":13520000},{"$f":"SUM(L8)","v":13520000},{"$f":"SUM(M8)","v":13820000},{"$f":"SUM(N8)","v":14000000}]
[null,"z tego"]
[2,"A.1. Dochody bieżące",{"$f":"SUM(C10:C12)","v":11435500},{"$f":"SUM(D9:D12)","v":11824921},12430064.220000001,12384103.5,{"$f":"SUM(G10:G12)","v":12309755},12400000,{"$f":"SUM(I10:I12)","v":12950000},{"$f":"SUM(J10:J12)","v":13130000},13520000,{"$f":"SUM(L10:L12)","v":13520000},13820000,14000000]
[null,"z tego"]
[3,"- dochody własne2)",3328733,3955808,3824059,3351597,3490300,3330000,3420000,3510000,3600000,3650000,3950000,3980000]
[4,"- subwencja ogólna",5356038,5471053,6167805,6217765,6363000,6520000,6600000,6650000,6700000,6720000,6720000,6750000]
[5,"- dotacje celowe na zadania bieżące",2750729,2398060,2318136,2181638,2456455,2550000,2930000,2970000,3220000,3150000,3150000,3270000]
[6,"A.2. Dochody majątkowe",{"$f":"SUM(C16)","v":0},{"$f":"SUM(D14:D16)","v":1885543},{"$f":"SUM(E16)","v":2222668},{"$f":"SUM(F16)","v":2933385},null,500000]
[null,"w tym"]
[7,"- dochody ze sprzedaży majątku",null,50200,4180.33,null,null,500000]
[8,"- dotacje celowe na zadania inwestycyjne",0,1835343,2222668,2933385]
[9,"B. Wydatki",{"$f":"SUM(C19+C23)","v":11776658},15355861,15684556.35,17451488.5,11522555,11940000,11817432,11997432,{"$f":"SUM(K19+K23)","v":12740000},{"$f":"SUM(L19+L23)","v":12855600},{"$f":"SUM(M19+M23)","v":13510000},{"$f":"SUM(N19+N23)","v":13617723}]
[null,"z tego"]
[10,"B1. Wydatki bieżące",9471057,10208326,11374224.58,11290365.5,10795368,10722568,11000432,11100000,11500000,11722592,12146000,12825000]
[null,"w tym"]
[11,"- wydatki na obsługę długu",71033.919999999998,49902,143342.87,220000,264679,200000,162686,118969,64881,56000,46000,25000]
[12,"- wydatki z tytułu poręczeń i gwarancji",42468.15,0,0]
[13,"B.2. Wydatki majątkowe",2305601,5147535,4310331.7699999996,6161123,727187,1217432,817000,897432,1240000,1133008,1364000,792723]
[14,"C. Nadwyżka/ deficyt (A - B)",{"$f":"SUM(C6-C17)","v":-341158},-1645397,-1031824.129999999,-2134000,787200,960000,1132568,1132568,660000,664400,310000,382277]
[15,"D. Finansowanie",{"$f":"SUM(C26-C42)","v":615523},1748365,1233282.6000000001,2134000,-787200,-960000,-1132568,-1132568,-660000,-664400,-310000,-382277]
[16,"D1 Przychody ogółem",{"$f":"SUM(C28+C40)","v":1544768},{"$f":"SUM(D28+D40)","v":2574364},{"$f":"SUM(E28+E40)","v":2023353},{"$f":"SUM(F28:F40)","v":3247585},{"$f":"SUM(G28+G40)","v":0},{"$f":"SUM(H28+H40)","v":0},0,0,0,0,0,0]
[null,"z tego"]
[17,"Kredyty i pożyczki długoterminowe",1000000,2300000,1920385,3040000,0,0,0,0,0,0,0,0]
[null,"w tym:"]
[18,"na realizację programów i projektów realizowanychz udziałem środków pochodzących z funduszy strukturalnych i Funduszu Spójności UE"]
[19,"Spłata pożyczek udzielonych"]
[20,"Nadwyżka z lat ubiegłych"]
[21,"Papiery wartościowe"]
[null,"w tym:"]
[22,"na realizację programów i projektów realizowanychz udziałem środków pochodzących z funduszy strukturalnych i Funduszu Spójności UE"]
[23,"Obligacje jednostek samorzadowych oraz związków komunalnych"]
[null,"w tym:"]
[24,"na realizację programów i projektów realizowanychz udziałem środków pochodzących z funduszy strukturalnych i Funduszu Spójności UE"]
[25,"Prywatyzacja majątku j.s.t."]
[26,"Inne źródła",544768,274364,102968,207585]
[27,"Przychody z lokat"]
[28,"D2 Rozchody ogółem",{"$f":"SUM(C44)","v":929245},825999,790070.4,1113585,{"$f":"SUM(G44)","v":787200},{"$f":"SUM(H44)","v":960000},1132568,1132568,{"$f":"SUM(K44)","v":660000},{"$f":"SUM(L44)","v":664400},{"$f":"SUM(M44)","v":310000},{"$f":"SUM(N44)","v":382277}]
[null,"z tego"]
[29,"Spłaty kredytów i pożyczek długoterminowych",929245,825999,790070.4,1113585,787200,960000,1132568,1132568,660000,664400,310000,382277]
[null,"w tym:"]
[30,"na realizację programów i projektów realizowanychz udziałem środków pochodzących z funduszy strukturalnych i Funduszu Spójności UE"]
[31,"Udzielone pożyczki"]
[32,"Lokaty w bankach"]
[33,"Wykup papierów wartościowych"]
[null,"w tym:"]
[34,"na realizację programów i projektów realizowanychz udziałem środków pochodzących z funduszy strukturalnych i Funduszu Spójności UE"]
[35,"Wykup obligacji samorządowych"]
[null,"w tym:"]
[36,"na realizację programów i projektów realizowanychz udziałem środków pochodzących z funduszy strukturalnych i Funduszu Spójności UE"]
[37,"Inne cele"]
[38,"E1. Dług na koniec roku",{"$f":"SUM(C58)","v":1779915.2},{"$f":"SUM(D58)","v":2912270},{"$f":"SUM(E58)","v":4042585},5969000,{"$f":"SUM(G58)","v":5241813},{"$f":"SUM(H58)","v":4281813},3149254,2016677,1356677,692277,382277,0]
[null,"z tego"]
[39,"Zaciągnięte kredyty i pożyczki długoterminowe",1779915.2,2912270,4042585,{"$f":"SUM(F56:F57)","v":5969000},5241813,4281813,3149254,2016677,1356677,692277,382277,0]
[null,"w tym:"]
[40,"na realizację programów i projektów realizowanychz udziałem środków pochodzących z funduszy strukturalnych i Funduszu Spójności UE",null,null,699000,1400000]
[41,"Wyemitowane papiery wartościowe"]
[null,"w tym:"]
[42,"na realizację programów i projektów realizowanychz udziałem środków pochodzących z funduszy strukturalnych i Funduszu Spójności UE"]
[43,"Wyemitowane obligacje samorządowe"]
[null,"w tym:"]
[44,"na realizację programów i projektów realizowanychz udziałem środków pochodzących z funduszy strukturalnych i Funduszu Spójności UE"]
[45,"Przyjęte depozyty3)"]
[46,"Wymagalne zobowiązania"]
[null,"w tym:"]
[47,"z tytułu dostaw towarów i usług"]
[48,"z tytułu udzielonych poręczeń"]
[49,"Wskaźnik długu (poz.38 / poz.1) %",{"$f":"SUM(C56/C6*100)","v":15.564821826767522},21.241221303669956,27.58929146662587,38.968529338213635,42.582594048378702,33.192348837209302,24.318563706563705,15.359306930693069,10.034593195266272,5.12039201183432,2.7661143270622288,0]
[50,"Wskaźnik długu bez UE (poz.38 - poz.40 - poz.42 - poz.44 / poz.1) %",15.56,21.24,24.13,28.96,37.74,30.49,21.08,12.17,3.47,3.47,3.47,3.47]
[51,"Wskaźnik długu do dochodów własnych (poz.38 / (poz.3+poz.6-poz.8)) %",53.47,72.7,110.27,161.94999999999999,133.1,116,79.84,45.52,12.92,12.92,12.92,12.92]
[52,"Wskaźnik długu bez UE do dochodów własnych ((poz.38 - poz.40 - poz.42 - poz.44) / (poz.3+poz.6-poz.8)) %",53.47,72.7,92,120.18,133.1,116,79.84,45.52,12.92,12.92,12.92,12.92]
[53,"E2. Zadłużenie w ciągu roku",{"$f":"SUM(C78)","v":1042747.07},875901,1001000,1333585,1051879,1160000,1295254,1251536,724881,720400,356000,407277]
[null,"z tego, przypadające do spłaty w roku budżetowym "]
[54,"kredyty i pożyczki (kapitał + odsetki)",1042747.07,875901,1001000,1333585,1051879,1160000,1295254,1251536,724881,720400,356000,407277]
[null,"w tym:"]
[55,"na realizację programów i projektów realizowanychz udziałem środków pochodzących z funduszy strukturalnych i Funduszu Spójności UE"]
[56,"wykup papierów wartościowych"]
[null,"w tym:"]
[57,"na realizację programów i projektów realizowanychz udziałem środków pochodzących z funduszy strukturalnych i Funduszu Spójności UE"]
[58,"wykup obligacji samorządowych"]
[null,"w tym:"]
[59,"na realizację programów i projektów realizowanychz udziałem środków pochodzących z funduszy strukturalnych i Funduszu Spójności UE"]
[60,"Potencjalne spłaty z tytułu udzielonych poręczeń4)"]
[61,"Wskaźnik zadłużenia (poz.53 / poz.1) %",{"$f":"SUM(C76/C6*100)","v":9.1185087665602715},{"$f":"SUM(D76/D6*100)","v":6.3885584032750469},6.79,{"$f":"SUM(F76/F6*100)","v":8.7062901989448207},{"$f":"SUM(G76/G6*100)","v":8.5450847721989582},{"$f":"SUM(H76/H6*100)","v":8.9922480620155039},{"$f":"SUM(I76/I6*100)","v":10.001961389961391},{"$f":"SUM(J76/J6*100)","v":9.5318811881188115},5.41,5.33,2.58,2.91]
[62,"Wskaźnik zadłużenia bez UE ((poz.53 - poz.55 - poz.57 - poz.59) / poz.1) %",9.1199999999999992,6.39,6.79,8,11.35,10.66,10,10,10,10,10,10]
[63,"Wskaźnik zadłużenia do dochodów własnych (poz.53 / (poz.3+poz.6-poz.8)) %",{"$f":"SUM(C76/C10*100)","v":31.325644622143017},21.86,25.89,{"$f":"SUM(F76/F10*100)","v":39.789539136119288},{"$f":"SUM(G76/G10*100)","v":30.137208835916685},34.83483483483483,37.872923976608185,35.656296296296297,20.135583333333333,19.736986301369864,0,0]
[64,"Wskaźnik zadłużenia bez UE do dochodów własnych ((poz.53 - poz.55 - poz.57- poz.59) / (poz.3+poz.6-poz.8)) %",31.33,21.86,25.89,{"$f":"SUM(F77/F11*100)","v":0},{"$f":"SUM(G77/G11*100)","v":0},0,0,0,0,0,0,0]
[66,"pokrycie wydatków bieżących dochodami bieżącymi (poz.2 - poz.10)",{"$f":"SUM(C8-C19)","v":1964443},1616595,1055839.6400000006,1093738,1514387,1677432,1949568,2030000,2020000,1797408,1674000,1175000]
[]
["1) - podać dane na poszczególne lata objęte spłatą całego zadłużenia"]
["2) - w dochodach własnych należy uwzględnić dochody z innych źródeł"]
["3) - depozyty przyjęte do budżetu"]
["4) - jeśli z umowy poręczenia wynika, że poręczyciel ponosi odpowiedzialność za zobowiązania dłużnika wg obowiązaującego dłużnika harmonogramu spłaty należy w poszczególnych kolumnach wykazać kwoty przypadające do spłaty w kolejnych latach obowiązywania umowy w/g harmonogramu obowiązującego dłużnika. Jeśli natomiast z umowy poręczenia wynika, że cały kredyt / pożyczka może być postawiony w stan natychmiastowej wymagalności w poszczególnych kolumnach należy wpisać kwoty odpowiadające całemu pozostałemu do spłaty w danym roku kredytowi lub pożyczce wraz z odsetkami."]